[Event "HUN-ch Rapid 2018"]
[Site "Ajka"]
[Date "2018.07.21"]
[Round "7"]
[White "Dankhazi, Andras"]
[Black "Papp, Petra"]
[Result "1/2-1/2"]
[ECO "D71"]
[WhiteElo "2361"]
[BlackElo "2287"]
[Annotator "NA RC"]
[PlyCount "78"]
[EventDate "2018.07.20"]
[EventType "swiss"]
[EventCountry "HUN"]
[SourceTitle "playchess.com"]
[Source "ChessBase"]
[SourceQuality "1"]
[TimeControl "1200+5"]

1. d4 {[%emt 0:00:03]} Nf6 {[%emt 0:00:17]} 2. c4 {[%emt 0:00:01]} g6 {[%emt 0:00:01]} 3. g3 {[%emt 0:00:02]} c5 {[%emt 0:00:18]} 4. dxc5 {[%emt 0:00:03]} Qa5+ {[%emt 0:00:39]} 5. Nc3 {[%emt 0:00:10]} Qxc5 {[%emt 0:00:19]} 6. e4 {[%emt 0:00:23]} d6 {[%emt 0:00:18]} 7. Be3 {[%emt 0:00:06]} Qa5 {[%emt 0:00:44]} 8. f3 {[%emt 0:02:45]} Bg7 {[%emt 0:00:14]} 9. Nge2 {[%emt 0:01:02]} O-O {[%emt 0:00:45]} 10. Nd4 {[%emt 0:02:34]} Nc6 {[%emt 0:00:24]} 11. Qd2 {[%emt 0:00:43]} Nxd4 {[%emt 0:00:20]} 12. Bxd4 {[%emt 0:00:02]} Be6 {[%emt 0:00:03]} 13. b3 {[%emt 0:01:05]} Rac8 {[%emt 0:01:54]} 14. Bg2 {[%emt 0:01:12]} a6 {[%emt 0:01:07]} 15. Ne2 {[%emt 0:01:08]} Qxd2+ {[%emt 0:02:54]} 16. Kxd2 {[%emt 0:00:01]} Nd7 {[%emt 0:00:02]} 17. Bxg7 {[%emt 0:00:11]} Kxg7 {[%emt 0:00:02]} 18. Nd4 {[%emt 0:00:01]} Ne5 {[%emt 0:01:01]} 19. f4 {[%emt 0:00:24]} Nc6 {[%emt 0:00:30]} 20. Nxc6 {[%emt 0:00:48]} bxc6 {[%emt 0:01:18]} 21. Rhe1 {[%emt 0:00:37]} f6 {[%emt 0:00:48]} 22. Rac1 {[%emt 0:00:24]} c5 {[%emt 0:00:14]} 23. Rf1 {[%emt 0:00:47]} a5 {[%emt 0:00:34]} 24. Rce1 {[%emt 0:00:15]} g5 {[%emt 0:02:42]} 25. Kc3 {[%emt 0:02:45]} Bd7 {[%emt 0:00:33]} 26. e5 {[%emt 0:00:09]} fxe5 {[%emt 0:00:53]} 27. fxe5 {[%emt 0:00:02]} Rxf1 {[%emt 0:00:14]} 28. Bxf1 {[%emt 0:00:02]} Rf8 {[%emt 0:00:31]} 29. exd6 {[%emt 0:00:18]} exd6 {[%emt 0:00:02]} 30. Bd3 {[%emt 0:00:25]} h6 {[%emt 0:00:16]} 31. a3 {[%emt 0:01:03]} Re8 {[%emt 0:00:06]} 32. Rxe8 {[%emt 0:00:39]} Bxe8 {[%emt 0:00:00]} 33. b4 {[%emt 0:00:01]} axb4+ {[%emt 0:00:22]} 34. axb4 {[%emt 0:00:01]} cxb4+ {[%emt 0:00:02]} 35. Kxb4 {[%emt 0:00:01]} Kf6 {[%emt 0:00:03]} 36. c5 {[%emt 0:00:01]} dxc5+ {[%emt 0:00:01]} 37. Kxc5 {[%emt 0:00:01]} Ke5 {[%emt 0:00:06]} 38. h4 {[%emt 0:00:34]} g4 {[%emt 0:00:46]} 39. Kc4 {[%emt 0:00:22]} Bf7+ {[%emt 0:00:40] Kd4+ Kd5+} 1/2-1/2

[Event "HUN-ch Rapid 2018"]
[Site "Ajka"]
[Date "2018.07.21"]
[Round "7"]
[White "Csonka, Attila Istvan"]
[Black "Hardicsay, Peter"]
[Result "1-0"]
[ECO "B40"]
[WhiteElo "2337"]
[BlackElo "2267"]
[Annotator "NA RC"]
[PlyCount "93"]
[EventDate "2018.07.20"]
[EventType "swiss"]
[EventCountry "HUN"]
[SourceTitle "playchess.com"]
[Source "ChessBase"]
[SourceQuality "1"]
[TimeControl "1200+5"]

1. e4 {[%emt 0:00:03]} c5 {[%emt 0:00:03]} 2. Nf3 {[%emt 0:00:02]} e6 {[%emt 0:00:09]} 3. b3 {[%emt 0:00:05]} Nc6 {[%emt 0:00:16]} 4. Bb2 {[%emt 0:00:05]} Nf6 {[%emt 0:00:03]} 5. Qe2 {[%emt 0:00:05]} d6 {[%emt 0:00:24]} 6. g3 {[%emt 0:00:06]} Be7 {[%emt 0:01:10]} 7. Bg2 {[%emt 0:00:04]} O-O {[%emt 0:00:03]} 8. O-O {[%emt 0:00:17]} e5 {[%emt 0:00:34]} 9. h3 {[%emt 0:00:03]} b5 {[%emt 0:00:34]} 10. c3 {[%emt 0:00:37]} Rb8 {[%emt 0:00:23]} 11. d4 {[%emt 0:00:11]} Qc7 {[%emt 0:00:58]} 12. Rd1 {[%emt 0:00:37]} Re8 {[%emt 0:00:15]} 13. Nbd2 {[%emt 0:00:19]} Bf8 {[%emt 0:00:36]} 14. dxe5 {[%emt 0:00:05]} Nxe5 {[%emt 0:01:23]} 15. Nxe5 {[%emt 0:00:03]} dxe5 {[%emt 0:00:32]} 16. c4 {[%emt 0:00:29]} b4 {[%emt 0:00:37]} 17. Nf1 {[%emt 0:00:04]} Bb7 {[%emt 0:00:26]} 18. g4 {[%emt 0:00:49]} h6 {[%emt 0:00:00]} 19. Qc2 {[%emt 0:00:49]} Nh7 {[%emt 0:00:52]} 20. Ne3 {[%emt 0:00:09]} Rbd8 {[%emt 0:00:58]} 21. Rxd8 {[%emt 0:00:15]} Rxd8 {[%emt 0:00:10]} 22. Nd5 {[%emt 0:00:11]} Qb8 {[%emt 0:00:33]} 23. Bc1 {[%emt 0:01:39]} Ng5 {[%emt 0:01:31]} 24. Bxg5 {[%emt 0:00:11]} hxg5 {[%emt 0:00:00]} 25. Bf3 {[%emt 0:00:37]} f6 {[%emt 0:00:23]} 26. Kg2 {[%emt 0:00:06]} a5 {[%emt 0:00:14]} 27. Rh1 {[%emt 0:00:13]} Kf7 {[%emt 0:00:44]} 28. h4 {[%emt 0:00:02]} gxh4 {[%emt 0:00:02]} 29. Rxh4 {[%emt 0:00:02]} Be7 {[%emt 0:00:57]} 30. Qc1 {[%emt 0:01:35]} Rh8 {[%emt 0:00:41]} 31. Qh1 {[%emt 0:00:03]} Rxh4 {[%emt 0:01:01]} 32. Qxh4 {[%emt 0:00:02]} Qg8 {[%emt 0:00:16]} 33. Qh1 {[%emt 0:01:58]} g5 {[%emt 0:00:51]} 34. Ne3 {[%emt 0:00:07]} Bf8 {[%emt 0:00:55]} 35. Nf5 {[%emt 0:00:06]} Bc8 {[%emt 0:00:27]} 36. a3 {[%emt 0:01:02]} Ke8 {[%emt 0:00:17]} 37. axb4 {[%emt 0:00:03]} axb4 {[%emt 0:00:04]} 38. Qa1 {[%emt 0:00:13]} Qe6 {[%emt 0:00:11]} 39. Ne3 {[%emt 0:00:20]} Qa6 {[%emt 0:00:07]} 40. Qd1 {[%emt 0:00:20]} Be6 {[%emt 0:00:28]} 41. Nd5 {[%emt 0:00:02]} Bxd5 42. exd5 {[%emt 0:00:05]} Kd7 {[%emt 0:00:36]} 43. Be4 {[%emt 0:00:04]} Qa2 {[%emt 0:00:09]} 44. Qf3 {[%emt 0:00:07]} Be7 {[%emt 0:00:15]} 45. Qf5+ {[%emt 0:00:02]} Kd8 {[%emt 0:00:02]} 46. Qe6 {[%emt 0:00:14]} Qd2 {[%emt 0:00:03]} 47. Bf5 {[%emt 0:00:05]} 1-0

[Event "HUN-ch Rapid 2018"]
[Site "Ajka"]
[Date "2018.07.21"]
[Round "7"]
[White "Martini, Balazs"]
[Black "Hoang, Thanh Trang"]
[Result "0-1"]
[ECO "A04"]
[WhiteElo "2295"]
[BlackElo "2351"]
[Annotator "NA RC"]
[PlyCount "102"]
[EventDate "2018.07.20"]
[EventType "swiss"]
[EventCountry "HUN"]
[SourceTitle "playchess.com"]
[Source "ChessBase"]
[SourceQuality "1"]
[TimeControl "1200+5"]

1. Nf3 {[%emt 0:00:24]} f5 {[%emt 0:01:31]} 2. g3 {[%emt 0:01:23]} Nf6 {[%emt 0:00:03]} 3. Bg2 {[%emt 0:00:01]} g6 {[%emt 0:00:06]} 4. O-O {[%emt 0:00:05]} Bg7 {[%emt 0:00:01]} 5. c4 {[%emt 0:00:05]} O-O {[%emt 0:00:08]} 6. Nc3 {[%emt 0:00:02]} d6 {[%emt 0:00:04]} 7. d3 {[%emt 0:00:02]} e5 {[%emt 0:00:11]} 8. Rb1 {[%emt 0:00:12]} a5 {[%emt 0:00:34]} 9. a3 {[%emt 0:00:02]} Nc6 {[%emt 0:00:09]} 10. b4 {[%emt 0:00:40]} axb4 {[%emt 0:00:07]} 11. axb4 {[%emt 0:00:01]} h6 {[%emt 0:00:21]} 12. Ne1 {[%emt 0:01:51]} g5 {[%emt 0:03:04]} 13. b5 {[%emt 0:01:34]} Ne7 {[%emt 0:00:09]} 14. e3 {[%emt 0:01:08]} Ng6 {[%emt 0:01:19]} 15. Nd5 {[%emt 0:01:13]} Kh8 {[%emt 0:00:34]} 16. Bb2 {[%emt 0:00:41]} f4 {[%emt 0:00:37]} 17. Ra1 {[%emt 0:00:37]} Bg4 {[%emt 0:03:37]} 18. Rxa8 {[%emt 0:03:06]} Qxa8 {[%emt 0:00:56]} 19. Qc2 {[%emt 0:01:25]} f3 20. Bh1 {[%emt 0:01:41]} Bh3 {[%emt 0:02:59]} 21. Bxf3 {[%emt 0:00:10]} Bxf1 {[%emt 0:00:08]} 22. Kxf1 {[%emt 0:00:02]} Nxd5 {[%emt 0:00:15]} 23. Bxd5 {[%emt 0:00:07]} Ne7 {[%emt 0:00:09]} 24. Bf3 {[%emt 0:02:51]} Qa7 {[%emt 0:00:09]} 25. Kg2 {[%emt 0:00:17]} c6 {[%emt 0:00:32]} 26. Qb3 {[%emt 0:01:12]} Ra8 {[%emt 0:00:05]} 27. Nc2 {[%emt 0:00:13]} Qa4 {[%emt 0:01:12]} 28. Qxa4 {[%emt 0:00:54]} Rxa4 {[%emt 0:00:02]} 29. Ba3 {[%emt 0:00:01]} cxb5 {[%emt 0:00:31]} 30. cxb5 {[%emt 0:00:02]} Ra5 {[%emt 0:00:49]} 31. b6 {[%emt 0:00:00]} Nc8 {[%emt 0:01:05]} 32. Bxb7 {[%emt 0:00:17]} Nxb6 {[%emt 0:00:01]} 33. Bxd6 {[%emt 0:00:04]} Ra2 {[%emt 0:00:10]} 34. Nb4 {[%emt 0:00:01]} Rb2 {[%emt 0:00:14]} 35. Be4 {[%emt 0:00:07]} Na4 {[%emt 0:00:08]} 36. Nc6 {[%emt 0:00:08]} Rb5 {[%emt 0:00:04]} 37. Ne7 {[%emt 0:00:05]} Nc3 {[%emt 0:00:06]} 38. Bc6 {[%emt 0:00:10]} Rb6 {[%emt 0:00:10]} 39. Bc7 {[%emt 0:00:06]} Ra6 {[%emt 0:00:08]} 40. Bxe5 {[%emt 0:00:09]} Bxe5 {[%emt 0:00:16]} 41. Ng6+ {[%emt 0:00:00]} Kg7 {[%emt 0:00:01]} 42. Nxe5 {[%emt 0:00:01]} Kf6 {[%emt 0:00:02]} 43. d4 {[%emt 0:00:06]} Ra2 {[%emt 0:00:04]} 44. Bf3 {[%emt 0:00:10]} Nb1 {[%emt 0:00:26]} 45. Ng4+ {[%emt 0:00:05]} Kg7 {[%emt 0:00:01]} 46. Bd5 {[%emt 0:00:07]} Rb2 {[%emt 0:00:03]} 47. Bf3 {[%emt 0:00:07]} h5 {[%emt 0:00:06]} 48. Ne5 {[%emt 0:00:06]} g4 {[%emt 0:00:00]} 49. Bd5 {[%emt 0:00:07]} Nc3 {[%emt 0:00:02]} 50. Bc4 {[%emt 0:00:05]} Nd1 {[%emt 0:00:04]} 51. d5 Nxe3+ 0-1

[Event "HUN-ch Rapid 2018"]
[Site "Ajka"]
[Date "2018.07.21"]
[Round "7"]
[White "Laszlo, Janos"]
[Black "Czupor, Attila"]
[Result "1/2-1/2"]
[ECO "D46"]
[WhiteElo "2273"]
[BlackElo "2045"]
[Annotator "NA RC"]
[PlyCount "63"]
[EventDate "2018.07.20"]
[EventType "swiss"]
[EventCountry "HUN"]
[SourceTitle "playchess.com"]
[Source "ChessBase"]
[SourceQuality "1"]
[TimeControl "1200+5"]

1. Nf3 {[%emt 0:00:02]} d5 {[%emt 0:00:01]} 2. e3 {[%emt 0:00:03]} Nf6 {[%emt 0:00:02]} 3. c4 {[%emt 0:00:02]} c6 {[%emt 0:00:07]} 4. d4 {[%emt 0:00:05]} e6 {[%emt 0:00:05]} 5. Bd3 {[%emt 0:00:07]} Nbd7 {[%emt 0:00:03]} 6. Nc3 {[%emt 0:00:04]} Bd6 {[%emt 0:00:03]} 7. O-O {[%emt 0:00:04]} O-O {[%emt 0:00:18]} 8. e4 {[%emt 0:00:04]} dxc4 {[%emt 0:00:02]} 9. Bxc4 {[%emt 0:00:03]} e5 {[%emt 0:00:02]} 10. Bb3 {[%emt 0:01:49]} exd4 {[%emt 0:01:48]} 11. Nxd4 {[%emt 0:00:25]} Nc5 {[%emt 0:01:04]} 12. Bg5 {[%emt 0:02:18]} Be5 {[%emt 0:00:55]} 13. Nf3 {[%emt 0:05:38]} Qxd1 {[%emt 0:04:07]} 14. Nxd1 {[%emt 0:00:44]} Ncxe4 {[%emt 0:00:16]} 15. Nxe5 {[%emt 0:00:40]} Nxg5 {[%emt 0:00:04]} 16. Nc3 {[%emt 0:01:00]} Bf5 {[%emt 0:01:55]} 17. f3 {[%emt 0:01:19]} h5 {[%emt 0:02:57]} 18. Rfe1 {[%emt 0:01:10]} Ne6 {[%emt 0:02:47]} 19. Rad1 {[%emt 0:01:14]} Rad8 {[%emt 0:00:30]} 20. Bxe6 {[%emt 0:01:01]} Bxe6 {[%emt 0:00:09]} 21. Kf2 {[%emt 0:00:34]} Rfe8 {[%emt 0:00:32]} 22. f4 {[%emt 0:00:55]} Nd5 {[%emt 0:02:41]} 23. Nxd5 {[%emt 0:00:11]} Bxd5 {[%emt 0:00:02]} 24. a3 {[%emt 0:00:30]} Bb3 {[%emt 0:00:17]} 25. Rxd8 {[%emt 0:00:14]} Rxd8 {[%emt 0:00:01]} 26. Re2 {[%emt 0:00:30]} Bd1 {[%emt 0:00:19]} 27. Re1 {[%emt 0:00:05]} f6 {[%emt 0:00:23]} 28. Nc4 {[%emt 0:00:10]} Bb3 {[%emt 0:00:13]} 29. Na5 {[%emt 0:00:06]} Rd2+ {[%emt 0:00:20]} 30. Re2 {[%emt 0:00:03]} Rxe2+ {[%emt 0:00:10]} 31. Kxe2 {[%emt 0:00:01]} Bd5 32. Nxb7 1/2-1/2

[Event "HUN-ch Rapid 2018"]
[Site "Ajka"]
[Date "2018.07.21"]
[Round "7"]
[White "Szalanczi, Emil"]
[Black "Hajnal, Zoltan"]
[Result "0-1"]
[ECO "C75"]
[WhiteElo "2214"]
[BlackElo "2357"]
[Annotator "NA RC"]
[PlyCount "86"]
[EventDate "2018.07.20"]
[EventType "swiss"]
[EventCountry "HUN"]
[SourceTitle "playchess.com"]
[Source "ChessBase"]
[SourceQuality "1"]
[TimeControl "1200+5"]

1. e4 {[%emt 0:00:40]} e5 {[%emt 0:00:02]} 2. Nf3 {[%emt 0:00:02]} Nc6 {[%emt 0:00:02]} 3. Bb5 {[%emt 0:00:01]} a6 {[%emt 0:00:02]} 4. Ba4 {[%emt 0:00:01]} d6 {[%emt 0:00:02]} 5. c3 {[%emt 0:00:05]} Bd7 {[%emt 0:00:01]} 6. O-O {[%emt 0:00:11]} g6 {[%emt 0:00:02]} 7. d4 {[%emt 0:00:12]} Bg7 {[%emt 0:00:01]} 8. d5 {[%emt 0:00:02]} Nce7 {[%emt 0:00:02]} 9. c4 {[%emt 0:00:01]} h6 {[%emt 0:00:03]} 10. Nc3 {[%emt 0:00:10]} f5 {[%emt 0:00:03]} 11. b4 {[%emt 0:00:03]} Nf6 {[%emt 0:00:07]} 12. Bb3 {[%emt 0:00:20]} f4 {[%emt 0:00:30]} 13. c5 {[%emt 0:00:07]} g5 {[%emt 0:00:01]} 14. Nd2 {[%emt 0:00:22]} g4 {[%emt 0:00:11]} 15. Nc4 {[%emt 0:00:14]} Nc8 {[%emt 0:00:37]} 16. a4 {[%emt 0:00:20]} Qe7 {[%emt 0:00:48]} 17. Ba3 {[%emt 0:00:18]} O-O {[%emt 0:00:21]} 18. c6 {[%emt 0:00:47]} bxc6 {[%emt 0:00:06]} 19. dxc6 {[%emt 0:00:06]} Be6 {[%emt 0:00:02]} 20. b5 {[%emt 0:00:39]} axb5 {[%emt 0:00:39]} 21. axb5 {[%emt 0:00:20]} Kh7 {[%emt 0:00:16]} 22. Nd5 {[%emt 0:00:35]} Bxd5 {[%emt 0:00:58]} 23. exd5 {[%emt 0:00:03]} Rb8 {[%emt 0:00:04]} 24. Rb1 {[%emt 0:00:50]} Kh8 {[%emt 0:03:24]} 25. Bc2 {[%emt 0:00:42]} Nb6 {[%emt 0:00:08]} 26. Nxb6 {[%emt 0:00:49]} Rxb6 {[%emt 0:00:04]} 27. Re1 {[%emt 0:00:29]} Qf7 {[%emt 0:00:28]} 28. Be4 {[%emt 0:00:52]} Rfb8 {[%emt 0:00:16]} 29. Qd3 {[%emt 0:00:04]} h5 {[%emt 0:01:08]} 30. Bc1 {[%emt 0:00:24]} Bh6 {[%emt 0:00:25]} 31. Bd2 {[%emt 0:00:05]} Ra8 {[%emt 0:00:51]} 32. Ra1 {[%emt 0:02:14]} Rxa1 {[%emt 0:00:03]} 33. Rxa1 {[%emt 0:00:01]} Nxe4 {[%emt 0:00:02]} 34. Qxe4 {[%emt 0:00:02]} Rxb5 {[%emt 0:00:01]} 35. g3 {[%emt 0:01:36]} Rxd5 {[%emt 0:01:55]} 36. Be1 {[%emt 0:00:33]} Rd4 {[%emt 0:01:47]} 37. Qb1 {[%emt 0:00:07]} Kg7 {[%emt 0:00:05]} 38. Qb8 {[%emt 0:00:47]} Rc4 {[%emt 0:00:09]} 39. Ra8 {[%emt 0:01:06]} Rc1 {[%emt 0:00:09]} 40. Qb4 {[%emt 0:02:26]} Qb3 {[%emt 0:00:16]} 41. Qa5 {[%emt 0:00:14]} Qb6 {[%emt 0:00:02]} 42. Qd2 {[%emt 0:03:17]} fxg3 {[%emt 0:00:08]} 43. Qe2 {[%emt 0:00:18]} gxf2+ {[%emt 0:00:07] Qd1} 0-1

[Event "HUN-ch Rapid 2018"]
[Site "Ajka"]
[Date "2018.07.21"]
[Round "7"]
[White "Buzas, Bertalan"]
[Black "Egresi, Mate"]
[Result "1-0"]
[ECO "E04"]
[WhiteElo "2133"]
[BlackElo "2280"]
[Annotator "RC"]
[PlyCount "74"]
[EventDate "2018.07.20"]
[EventType "swiss"]
[EventCountry "HUN"]
[SourceTitle "playchess.com"]
[Source "ChessBase"]
[SourceQuality "1"]
[TimeControl "1200+5"]

1. d4 {[%emt 0:00:01]} d5 {[%emt 0:00:01]} 2. c4 {[%emt 0:00:01]} e6 {[%emt 0:00:02]} 3. Nf3 {[%emt 0:00:03]} Nf6 {[%emt 0:00:03]} 4. g3 {[%emt 0:00:01]} dxc4 {[%emt 0:00:03]} 5. Bg2 {[%emt 0:00:03]} Nc6 {[%emt 0:00:10]} 6. O-O {[%emt 0:00:06]} Rb8 {[%emt 0:00:09]} 7. e3 {[%emt 0:00:03]} Bd7 {[%emt 0:00:19]} 8. Qe2 {[%emt 0:00:02]} b5 {[%emt 0:00:03]} 9. b3 {[%emt 0:00:03]} cxb3 {[%emt 0:00:12]} 10. axb3 {[%emt 0:00:01]} Bb4 {[%emt 0:02:34]} 11. Bd2 {[%emt 0:00:10]} Qe7 {[%emt 0:00:28]} 12. Rc1 {[%emt 0:00:14]} O-O {[%emt 0:01:05]} 13. Ne5 {[%emt 0:01:34]} Nxe5 {[%emt 0:01:04]} 14. dxe5 {[%emt 0:00:01]} Nd5 {[%emt 0:00:03]} 15. e4 {[%emt 0:01:08]} Nb6 {[%emt 0:01:16]} 16. Rxc7 {[%emt 0:00:13]} a5 {[%emt 0:00:39]} 17. Nc3 {[%emt 0:00:36]} Rfc8 {[%emt 0:00:42]} 18. Rxc8+ {[%emt 0:02:03]} Rxc8 {[%emt 0:00:02]} 19. Nd1 {[%emt 0:01:45]} Bxd2 {[%emt 0:00:44]} 20. Qxd2 {[%emt 0:00:39]} a4 {[%emt 0:00:19]} 21. bxa4 {[%emt 0:04:27]} bxa4 {[%emt 0:00:01]} 22. Ne3 {[%emt 0:00:35]} Qc5 {[%emt 0:04:00]} 23. Rb1 {[%emt 0:04:21]} a3 {[%emt 0:00:53]} 24. Qa2 {[%emt 0:00:33]} Ra8 {[%emt 0:01:23]} 25. h4 {[%emt 0:00:49]} h6 {[%emt 0:00:40]} 26. Rb3 {[%emt 0:01:29]} Bc6 {[%emt 0:01:29]} 27. h5 {[%emt 0:00:09]} Kh7 {[%emt 0:01:16]} 28. Ng4 {[%emt 0:00:15]} Nd7 {[%emt 0:00:18]} 29. Rf3 {[%emt 0:00:36]} Qc1+ {[%emt 0:00:21]} 30. Kh2 {[%emt 0:00:02]} Qb2 {[%emt 0:00:18]} 31. Qc4 {[%emt 0:00:13]} a2 {[%emt 0:00:28]} 32. Qxc6 {[%emt 0:00:01]} a1=Q {[%emt 0:00:08]} 33. Qxd7 {[%emt 0:00:13]} Qa7 {[%emt 0:00:22]} 34. Qd3 {[%emt 0:00:05]} Rb8 {[%emt 0:00:33]} 35. Bh3 {[%emt 0:00:08]} Qc1 {[%emt 0:00:09]} 36. Rf4 {[%emt 0:00:06]} Rb1 {[%emt 0:00:04]} 37. Bg2 {[%emt 0:00:01]} Qe7 {...} 1-0

[Event "HUN-ch Rapid 2018"]
[Site "Ajka"]
[Date "2018.07.21"]
[Round "7"]
[White "Szukics, Adam"]
[Black "Kiss, Pal"]
[Result "1-0"]
[ECO "D00"]
[WhiteElo "2010"]
[BlackElo "2356"]
[Annotator "NA RC"]
[PlyCount "91"]
[EventDate "2018.07.20"]
[EventType "swiss"]
[EventCountry "HUN"]
[SourceTitle "playchess.com"]
[Source "ChessBase"]
[SourceQuality "1"]
[TimeControl "1200+5"]

1. d4 {[%emt 0:00:02]} d5 {[%emt 0:00:01]} 2. Bf4 {[%emt 0:00:02]} Nf6 {[%emt 0:00:08]} 3. e3 {[%emt 0:00:02]} c5 {[%emt 0:00:06]} 4. c3 {[%emt 0:00:02]} Nc6 {[%emt 0:00:02]} 5. Nd2 {[%emt 0:00:01]} cxd4 {[%emt 0:00:03]} 6. exd4 {[%emt 0:00:07]} Bf5 {[%emt 0:00:02]} 7. Ngf3 {[%emt 0:00:07]} e6 {[%emt 0:00:07]} 8. Qb3 {[%emt 0:00:37]} Qc8 {[%emt 0:00:04]} 9. Be2 {[%emt 0:00:39]} Be7 {[%emt 0:00:03]} 10. O-O {[%emt 0:00:13]} O-O {[%emt 0:00:09]} 11. h3 {[%emt 0:00:35]} Ne4 {[%emt 0:00:32]} 12. Rfe1 {[%emt 0:00:43]} Nxd2 {[%emt 0:00:32]} 13. Nxd2 {[%emt 0:00:07]} Qd7 {[%emt 0:04:08]} 14. Nf3 {[%emt 0:02:14]} Bd6 {[%emt 0:00:47]} 15. Bxd6 {[%emt 0:03:15]} Qxd6 {[%emt 0:00:03]} 16. a4 {[%emt 0:01:55]} Rab8 {[%emt 0:01:00]} 17. Qa2 {[%emt 0:01:44]} Rfc8 {[%emt 0:01:06]} 18. Bb5 {[%emt 0:01:03]} Ne7 {[%emt 0:06:18]} 19. Ne5 {[%emt 0:01:20]} a6 {[%emt 0:01:39]} 20. Bd3 {[%emt 0:00:02]} Bxd3 21. Nxd3 a5 {[%emt 0:00:44]} 22. Re2 {[%emt 0:01:51]} Qa6 {[%emt 0:00:13]} 23. Rd2 {[%emt 0:00:20]} Nf5 {[%emt 0:00:08]} 24. Nc5 {[%emt 0:01:54]} Qc6 {[%emt 0:00:04]} 25. Rc1 {[%emt 0:00:09]} Nd6 {[%emt 0:00:09]} 26. b4 {[%emt 0:00:23]} b6 {[%emt 0:00:27]} 27. b5 {[%emt 0:00:41]} Qe8 {[%emt 0:00:13]} 28. Nd3 {[%emt 0:00:05]} Rb7 {[%emt 0:00:10]} 29. Rdc2 {[%emt 0:00:31]} Rbc7 {[%emt 0:00:05]} 30. Ne5 {[%emt 0:00:05]} Nb7 {[%emt 0:00:56]} 31. c4 {[%emt 0:00:21]} dxc4 {[%emt 0:00:35]} 32. Rxc4 {[%emt 0:00:02]} Rxc4 {[%emt 0:00:26]} 33. Rxc4 {[%emt 0:00:01]} Nd6 {[%emt 0:00:14]} 34. Rc6 {[%emt 0:00:54]} Nf5 {[%emt 0:00:27]} 35. Rxc8 {[%emt 0:00:24]} Qxc8 {[%emt 0:00:02]} 36. Qc4 {[%emt 0:00:02]} Qd8 {[%emt 0:00:22]} 37. Nc6 {[%emt 0:00:20]} Qd6 {[%emt 0:00:04]} 38. g4 {[%emt 0:00:06]} Nh4 {[%emt 0:00:07]} 39. Ne5 {[%emt 0:00:02]} g5 {[%emt 0:00:15]} 40. Qc8+ {[%emt 0:00:09]} Kg7 {[%emt 0:00:02]} 41. Qd7 {[%emt 0:00:05]} Nf3+ {[%emt 0:00:24]} 42. Kg2 {[%emt 0:00:00]} Qxd7 {[%emt 0:00:10]} 43. Nxd7 {[%emt 0:00:02]} Nxd4 {[%emt 0:00:02]} 44. Nxb6 {[%emt 0:00:01]} Nb3 {[%emt 0:00:14]} 45. Nd7 {[%emt 0:00:08]} Nd4 {[%emt 0:00:10]} 46. b6 {[%emt 0:00:03]} 1-0

[Event "HUN-ch Rapid 2018"]
[Site "Ajka"]
[Date "2018.07.21"]
[Round "8"]
[White "Vertetics, Attila"]
[Black "Volosin, Vladimir"]
[Result "1-0"]
[ECO "D10"]
[WhiteElo "2506"]
[BlackElo "2250"]
[Annotator "ChessBase"]
[PlyCount "75"]
[EventDate "2018.07.20"]
[EventType "swiss"]
[EventCountry "HUN"]
[SourceTitle "playchess.com"]
[Source "ChessBase"]
[SourceQuality "1"]
[TimeControl "1200+5"]

1. d4 {[%emt 0:00:01]} c6 {[%emt 0:00:08]} 2. c4 {[%emt 0:00:06]} d5 {[%emt 0:00:01]} 3. cxd5 {[%emt 0:00:01]} cxd5 {[%emt 0:00:01]} 4. Bg5 {[%emt 0:00:02]} Qb6 {[%emt 0:00:20]} 5. Qd2 {[%emt 0:00:20]} Nc6 {[%emt 0:00:12]} 6. e3 {[%emt 0:00:03]} Bf5 {[%emt 0:00:15]} 7. Nc3 {[%emt 0:00:05]} e6 {[%emt 0:00:03]} 8. Bb5 {[%emt 0:01:28]} Bb4 {[%emt 0:00:23]} 9. Bxc6+ {[%emt 0:00:44]} Qxc6 {[%emt 0:00:09]} 10. Nge2 {[%emt 0:00:06]} Nf6 {[%emt 0:00:15]} 11. f3 {[%emt 0:00:30]} Rc8 {[%emt 0:00:17]} 12. Rc1 {[%emt 0:00:16]} O-O {[%emt 0:00:11]} 13. a3 {[%emt 0:01:45]} Bxc3 {[%emt 0:00:15]} 14. Rxc3 {[%emt 0:00:30]} Qa6 {[%emt 0:00:06]} 15. Bxf6 {[%emt 0:00:05]} gxf6 {[%emt 0:00:01]} 16. Kf2 {[%emt 0:00:04]} Rxc3 {[%emt 0:00:11]} 17. Nxc3 {[%emt 0:00:01]} Rc8 {[%emt 0:00:10]} 18. Rc1 {[%emt 0:00:04]} Kg7 {[%emt 0:00:14]} 19. Ne2 {[%emt 0:01:16]} b6 {[%emt 0:00:39]} 20. Nf4 {[%emt 0:00:28]} Bg6 {[%emt 0:00:24]} 21. Rc3 {[%emt 0:00:19]} Rxc3 {[%emt 0:01:38]} 22. Qxc3 {[%emt 0:00:01]} Qb5 {[%emt 0:00:00]} 23. h4 {[%emt 0:01:37]} h5 {[%emt 0:00:13]} 24. b4 {[%emt 0:01:56]} Qd7 {[%emt 0:00:13]} 25. Ke1 {[%emt 0:00:42]} Qd6 {[%emt 0:00:39]} 26. Kd2 {[%emt 0:00:38]} e5 {[%emt 0:00:22]} 27. Ne2 {[%emt 0:00:11]} Bf5 {[%emt 0:00:36]} 28. Ke1 {[%emt 0:00:50]} Qd7 {[%emt 0:00:44]} 29. dxe5 {[%emt 0:00:05]} fxe5 {[%emt 0:00:10]} 30. Qxe5+ {[%emt 0:00:02]} f6 {[%emt 0:00:01]} 31. Qc3 {[%emt 0:00:11]} Qd6 {[%emt 0:00:59]} 32. Nf4 {[%emt 0:00:02]} Bg6 {[%emt 0:00:12]} 33. Qc7+ {[%emt 0:00:39]} Qxc7 {[%emt 0:00:11]} 34. Ne6+ {[%emt 0:00:01]} Kg8 {[%emt 0:00:27]} 35. Nxc7 {[%emt 0:00:01]} Bf7 {[%emt 0:00:01]} 36. Kd2 {[%emt 0:00:06]} Kf8 {[%emt 0:00:04]} 37. Kc3 {[%emt 0:00:04]} Ke7 {[%emt 0:00:10]} 38. Kd4 {[%emt 0:00:01] Ke8} 1-0

[Event "HUN-ch Rapid 2018"]
[Site "Ajka"]
[Date "2018.07.21"]
[Round "8"]
[White "Kiss, Pal"]
[Black "Papp, Petra"]
[Result "1/2-1/2"]
[ECO "D83"]
[WhiteElo "2356"]
[BlackElo "2287"]
[Annotator "NA RC"]
[PlyCount "38"]
[EventDate "2018.07.20"]
[EventType "swiss"]
[EventCountry "HUN"]
[SourceTitle "playchess.com"]
[Source "ChessBase"]
[SourceQuality "1"]
[TimeControl "1200+5"]

1. d4 {[%emt 0:00:01]} Nf6 {[%emt 0:00:01]} 2. c4 {[%emt 0:00:02]} g6 {[%emt 0:00:03]} 3. Nc3 {[%emt 0:00:02]} d5 {[%emt 0:00:01]} 4. Bf4 {[%emt 0:00:06]} Bg7 {[%emt 0:00:02]} 5. e3 {[%emt 0:00:01]} O-O {[%emt 0:00:09]} 6. Rc1 {[%emt 0:00:03]} Be6 {[%emt 0:00:10]} 7. cxd5 {[%emt 0:00:40]} Nxd5 {[%emt 0:00:08]} 8. Nxd5 {[%emt 0:00:04]} Qxd5 {[%emt 0:00:16]} 9. b3 {[%emt 0:00:15]} Qa5+ {[%emt 0:01:39]} 10. Qd2 {[%emt 0:00:02]} Qxd2+ {[%emt 0:00:01]} 11. Kxd2 {[%emt 0:00:03]} c6 {[%emt 0:00:04]} 12. Bc4 {[%emt 0:00:14]} Bxc4 {[%emt 0:00:42]} 13. Rxc4 {[%emt 0:00:04]} Nd7 {[%emt 0:00:13]} 14. Nf3 {[%emt 0:00:04]} Rfe8 {[%emt 0:00:29]} 15. Ke2 {[%emt 0:00:37]} e5 {[%emt 0:00:40]} 16. dxe5 {[%emt 0:00:21]} Nxe5 {[%emt 0:00:04]} 17. Nxe5 {[%emt 0:02:09]} Bxe5 {[%emt 0:00:02]} 18. Rd1 {[%emt 0:02:50]} Bxf4 {[%emt 0:00:29]} 19. Rxf4 {[%emt 0:00:03]} Re7 {[%emt 0:00:02]} 1/2-1/2